Workbook

Sheet Household Expense Budget
B1: HOUSEHOLD EXPENSE BUDGET
B11: SUMMARY | C11: BUDGET | D11: ACTUAL | E11: BALANCE
B12: Total Income | C12: =C25 -> $7,257.00 | D12: =D25 -> $7,020.00 | E12: =C12-D12 -> $237.00
B13: Total Expenses | C13: =SUM(C52,C60,C69,C75+C83,C91) -> $5,359.00 | D13: =SUM(D52,D60,D69,D75+D83,D91) -> $2,400.00 | E13: =C13-D13 -> $2,959.00
B15: INCOME | C15: BUDGET | D15: ACTUAL | E15: BALANCE
B17: Salary/Wages | C17: $5,987.00 | D17: $6,000.00 | E17: =D17-C17 -> $13.00
B18: Interest Income | C18: $200.00 | D18: $150.00 | E18: =D18-C18 -> $(50.00)
B19: Dividends | C19: $100.00 | D19: $100.00 | E19: 0
B20: Refunds/Reimbursements | C20: $55.00 | D20: $20.00 | E20: $(35.00)
B21: Business | C21: $500.00 | D21: $500.00 | E21: 0
B22: Pension | C22: $300.00 | D22: $200.00 | E22: $(100.00)
B23: Misc. | C23: $115.00 | D23: $50.00 | E23: $(65.00)
B25: TOTAL | C25: =SUM(C17:C23) -> $7,257.00 | D25: =SUM(D17:D23) -> $7,020.00
B27: SAVINGS | C27: BUDGET | D27: ACTUAL | E27: BALANCE
B29: Emergency Fund | C29: $500.00 | D29: $400.00 | E29: =D29-C29 -> $(100.00)
B30: Transfer to Savings | C30: $200.00 | D30: 0 | E30: =D30-C30 -> $(200.00)
B31: Retirement (401K, IRA) | C31: $100.00 | D31: 0 | E31: $(100.00)
B32: Investments | C32: $55.00 | D32: 0 | E32: $(55.00)
B33: Education | C33: $500.00 | D33: 0 | E33: $(500.00)
B34: Other | C34: $300.00 | D34: 0 | E34: $(300.00)
B36: TOTAL | C36: =SUM(C29:C34) -> $1,655.00 | D36: =SUM(D29:D34) -> $400.00
B38: EXPENSES | C38: BUDGET | D38: ACTUAL | E38: BALANCE
B39: HOME
B40: Mortgage/Rent | C40: $2,250.00 | D40: $2,250.00 | E40: =D40-C40 -> 0
B41: Home/Rental Insurance | C41: $25.00 | D41: 0 | E41: =D41-C41 -> $(25.00)
B42: Electricity | C42: $40.00 | D42: 0 | E42: $(40.00)
B43: Gas/Oil | C43: $44.00 | D43: 0 | E43: $(44.00)
B44: Water/Sewer/Trash | C44: $20.00 | D44: 0 | E44: $(20.00)
B45: Phone | C45: $15.00 | D45: 0 | E45: $(15.00)
B46: Cable/Satellite | C46: 0 | D46: 0 | E46: 0
B47: Internet | C47: $29.00 | D47: 0 | E47: $(29.00)
B48: Furnishing/Appliances | C48: 0 | D48: 0 | E48: 0
B49: Lawn/Garden | C49: 0 | D49: 0 | E49: 0
B50: Maintenance/Improvements | C50: 0 | D50: 0 | E50: 0
B51: Other | C51: 0 | D51: 0 | E51: 0
C52: =SUM(C40:C51) -> $2,423.00 | D52: =SUM(D40:D51) -> $2,250.00
B53: TRANSPORTATION
B54: Car Payments | C54: $250.00 | D54: 0 | E54: =D54-C54 -> $(250.00)
B55: Auto Insurance | C55: $100.00 | D55: 0 | E55: =D55-C55 -> $(100.00)
B56: Fuel | C56: $100.00 | D56: $150.00 | E56: $50.00
B57: Public Transportation | C57: 0 | D57: 0 | E57: 0
B58: Repairs/Maintenance | C58: 0 | D58: 0 | E58: 0
B59: Registration/License | C59: $100.00 | D59: 0 | E59: $(100.00)
C60: =SUM(C54:C59) -> $550.00 | D60: =SUM(D54:D59) -> $150.00
B61: DAILY LIVING
B62: Groceries | C62: $250.00 | D62: 0 | E62: =D62-C62 -> $(250.00)
B63: Child Care | C63: $100.00 | D63: 0 | E63: =D63-C63 -> $(100.00)
B64: Dining Out | C64: $100.00 | D64: 0 | E64: $(100.00)
B65: Clothing | C65: 0 | D65: 0 | E65: 0
B66: Cleaning | C66: 0 | D66: 0 | E66: 0
B67: Salon/Barber | C67: $100.00 | D67: 0 | E67: $(100.00)
B68: Pet Supplies | C68: $101.00 | D68: 0 | E68: $(101.00)
C69: =SUM(C62:C68) -> $651.00 | D69: =SUM(D62:D68) -> 0
B70: ENTERTAINMENT
B71: Video/DVD/Movies | C71: $250.00 | D71: 0 | E71: =D71-C71 -> $(250.00)
B72: Concerts/Plays | C72: $100.00 | D72: 0 | E72: =D72-C72 -> $(100.00)
B73: Sports | C73: $100.00 | D73: 0 | E73: $(100.00)
B74: Outdoor Recreation | C74: 0 | D74: 0 | E74: 0
C75: =SUM(C71:C74) -> $450.00 | D75: =SUM(D71:D74) -> 0
B76: HEALTH
B77: Health Insurance | C77: $65.00 | D77: 0 | E77: =D77-C77 -> $(65.00)
B78: Gym Membership | C78: $20.00 | D78: 0 | E78: =D78-C78 -> $(20.00)
B79: Doctors/Dentist Visits | C79: 0 | D79: 0 | E79: 0
B80: Medicine/Prescriptions | C80: 0 | D80: 0 | E80: 0
B81: Veterinarian | C81: 0 | D81: 0 | E81: 0
B82: Life Insurance | C82: 0 | D82: 0 | E82: 0
C83: =SUM(C77:C82) -> $85.00 | D83: =SUM(D77:D82) -> 0
B84: VACATION/HOLIDAY
B85: Airfare | C85: $450.00 | D85: 0 | E85: =D85-C85 -> $(450.00)
B86: Accommodations | C86: $250.00 | D86: 0 | E86: =D86-C86 -> $(250.00)
B87: Food | C87: $200.00 | D87: 0 | E87: $(200.00)
B88: Souvenirs | C88: $50.00 | D88: 0 | E88: $(50.00)
B89: Pet Boarding | C89: $100.00 | D89: 0 | E89: $(100.00)
B90: Rental Car | C90: $150.00 | D90: 0 | E90: $(150.00)
C91: =SUM(C85:C90) -> $1,200.00 | D91: =SUM(D85:D90) -> 0
B93: TOTAL | C93: =C91+C83+C75+C69+C60+C52 -> $5,359.00 | D93: =D91+D83+D75+D69+D60+D52 -> $2,400.00
B95: CLICK HERE TO CREATE HOUSEHOLD BUDGET TEMPLATES IN SMARTSHEET
